fUST/lending_fUST_20240918
["ID","MTS","AMOUNT","RATE_DAILY","PERIOD"]
[338403476,1726589438231,-912.40748813,0.00017228,2]
[338403478,1726589438240,-166.56387336,0.00017296,2]
[338403480,1726589438249,-168.73114817,0.00017396,2]
[338403482,1726589438284,-131.26885183,0.00017396,2]
[338403484,1726589438294,-300.0,0.00017396,2]
[338403486,1726589438303,-2573.61721395,0.00017397,2]
[338403543,1726589440294,-562.76647442,0.00017397,2]
[338403552,1726589440387,-6114.21536641,0.00017397,2]
[338403554,1726589440399,-1999.98674099,0.00017397,2]
[338403577,1726589443255,-13649.41420423,0.00017397,2]
[338403578,1726589443264,-3000.0,0.00017397,2]
[338403579,1726589443274,-439.104428,0.00017397,2]
[338403580,1726589443284,-4981.50144443,0.00017565,2]
[338403581,1726589443293,-250.0,0.00017665,2]
[338403583,1726589443303,-634.62037441,0.0001809,2]
[338403585,1726589443313,-160.0,0.00018703,3]
[338403586,1726589443322,-153.0,0.00018775,2]
[338403588,1726589443332,-153.0,0.000188,2]
[338403590,1726589443341,-153.0,0.00018978,2]
[338403591,1726589443350,-420.0,0.00018993,2]
[338403593,1726589443360,-620.73101872,0.00018994,2]
[338403594,1726589443370,-500.0,0.0001904,2]
[338403596,1726589443379,-500.0,0.0001904,2]
[338403598,1726589443388,-500.0,0.0001904,2]
[338403599,1726589443397,-500.0,0.0001904,2]
[338403601,1726589443406,-500.0,0.0001904,2]
[338403603,1726589443415,-500.0,0.0001904,2]
[338403604,1726589443425,-500.0,0.0001904,2]
[338403605,1726589443434,-500.0,0.0001904,2]
[338403606,1726589443443,-500.0,0.0001904,2]
[338403607,1726589443452,-500.0,0.0001904,2]
[338403608,1726589443461,-500.0,0.0001904,2]
[338403609,1726589443470,-500.0,0.0001904,2]
[338403610,1726589443479,-500.0,0.0001904,2]
[338403611,1726589443488,-454.80141634,0.0001904,2]
[338403645,1726589446332,-153.0,0.00018841,2]
[338403646,1726589446345,-45.19858366,0.0001904,2]
[338403648,1726589446365,-500.0,0.0001904,2]
[338403649,1726589446376,-500.0,0.0001904,2]
[338403650,1726589446386,-500.0,0.0001904,2]
[338403652,1726589446396,-500.0,0.0001904,2]
[338403653,1726589446405,-500.0,0.0001904,2]
[338403654,1726589446414,-500.0,0.0001904,2]
[338403656,1726589446424,-3.92019405,0.0001904,2]
[338403660,1726589652758,1763.0,0.0001401,2]
[338403662,1726589774500,856.78297672,0.000125,2]
[338403779,1726590638366,-5000.0,0.00015141,2]
[338403780,1726590638375,-5000.0,0.00015141,2]
[338403781,1726590638384,-5000.0,0.00015141,2]
[338403782,1726590638394,-5000.0,0.00015141,2]
[338403783,1726590638403,-3000.0,0.0001612,2]
[338403784,1726590638414,-439.104428,0.00016337,2]
[338403785,1726590638425,-500.0,0.00016466,2]
[338403786,1726590638434,-500.0,0.00016466,2]
[338403787,1726590638443,-500.0,0.00016466,2]
[338403788,1726590638453,-500.0,0.00016466,2]
[338403789,1726590638461,-500.0,0.00016466,2]
[338403790,1726590638471,-500.0,0.00016466,2]
[338403791,1726590638480,-500.0,0.00016466,2]
[338403792,1726590638489,-500.0,0.00016466,2]
[338403793,1726590638498,-500.0,0.00016466,2]
[338403794,1726590638507,-500.0,0.00016466,2]
[338403795,1726590638516,-500.0,0.00016466,2]
[338403796,1726590638525,-500.0,0.00016466,2]
[338403797,1726590638534,-500.0,0.00016466,2]
[338403798,1726590638544,-500.0,0.00016466,2]
[338403799,1726590638553,-500.0,0.00016466,2]
[338403800,1726590638562,-500.0,0.00016466,2]
[338403801,1726590638571,-500.0,0.00016466,2]
[338403802,1726590638580,-500.0,0.00016466,2]
[338403803,1726590638589,-500.0,0.00016466,2]
[338403804,1726590638599,-500.0,0.00016466,2]
[338403805,1726590638609,-500.0,0.00016466,2]
[338403806,1726590638620,-500.0,0.00016466,2]
[338403807,1726590638631,-500.0,0.00016466,2]
[338403808,1726590638641,-500.0,0.00016466,2]
[338403809,1726590638651,-348.09587215,0.00016466,2]
[338403810,1726590638662,-500.0,0.00016466,2]
[338403811,1726590638671,-500.0,0.00016466,2]
[338403812,1726590638682,-500.0,0.00016466,2]
[338403813,1726590638691,-500.0,0.00016466,2]
[338403814,1726590638702,-500.0,0.00016466,2]
[338403815,1726590638712,-500.0,0.00016466,2]
[338403816,1726590638723,-500.0,0.00016466,2]
[338403817,1726590638733,-500.0,0.00016466,2]
[338403818,1726590638742,-300.0,0.00016466,2]
[338403819,1726590638753,-300.0,0.00016466,2]
[338403820,1726590638764,-24900.0,0.00016467,2]
[338403821,1726590638773,-22331.3319685,0.00017393,5]
[338403822,1726590638783,-3731.50144443,0.00017393,2]
[338403823,1726590638794,-250.0,0.00017397,2]
[338403824,1726590638803,-253.85636901,0.00017475,2]
[338403825,1726590638815,-20000.0,0.000175,2]
[338403826,1726590638824,-500.0,0.00017767,2]
[338403827,1726590638834,-543.54638897,0.00017767,2]
[338403828,1726590638843,-590.36892812,0.00017845,2]
[338403829,1726590638854,-500.0,0.00017933,2]
[338403830,1726590638863,-513.21623548,0.00017933,2]
[338403831,1726590638873,-420.0,0.00017994,2]
[338403832,1726590638882,-400.11708857,0.00018,2]
[338403833,1726590638892,-306.0,0.00018082,2]
[338403834,1726590638901,-153.0,0.00018082,2]
[338403835,1726590638912,-153.0,0.00018082,2]
[338403836,1726590638922,-420.0,0.00018112,2]
[338403837,1726590638932,-160.0,0.00018198,3]
[338403838,1726590638943,-200.88249384,0.000183,2]
[338403839,1726590638954,-159.82206664,0.000183,2]
[338403840,1726590638963,-434.4005391,0.00018356,2]
[338403841,1726590638972,-153.0,0.00018356,2]
[338403842,1726590638982,-748.08828909,0.0001839,2]
[338403843,1726590638992,-4191.23262147,0.000184,2]
[338403844,1726590639002,-500.0,0.00018473,2]
[338403845,1726590639012,-500.0,0.00018473,2]
[338403846,1726590639022,-160.01369344,0.00018473,2]
[338403847,1726590639033,-500.0,0.00018473,2]
[338403848,1726590639043,-538.09006859,0.00018473,2]
[338403849,1726590639052,-500.0,0.00018473,2]
[338403850,1726590639062,-160.08750632,0.00018473,2]
[338403851,1726590639073,-500.0,0.00018473,2]
[338403852,1726590639083,-500.0,0.00018473,2]
[338403853,1726590639093,-210.78748589,0.00018473,2]
[338403854,1726590639102,-503.75028867,0.00018473,2]
[338403855,1726590639112,-500.0,0.00018473,2]
[338403856,1726590639121,-340.48609535,0.00018478,2]
[338403857,1726590639133,-209.13647348,0.00018478,2]
[338403858,1726590639144,-500.0,0.00018478,2]
[338403859,1726590639154,-602.88163722,0.00018478,2]
[338403860,1726590639165,-500.0,0.00018478,2]
[338403861,1726590639174,-83989.7382635,0.00018479,2]
[338403862,1726590639183,-1894.81786826,0.00018479,2]
[338403863,1726590639193,-40434.20783537,0.0001848,2]
[338403913,1726590641249,-127545.26869163,0.0001848,2]
[338403915,1726590641258,-3789.63573652,0.0001848,2]
[338403916,1726590641267,-522.17472797,0.000185,2]
[338403918,1726590641277,-500.0,0.000185,2]
[338403920,1726590641286,-160.0,0.00018535,4]
[338403921,1726590641295,-83989.7382635,0.0001862,2]
[338403922,1726590641305,-1894.81786826,0.0001862,2]
[338403923,1726590641315,-17327.821081,0.0001863,2]
[338403924,1726590641324,-500.0,0.00018673,2]
[338403925,1726590641336,-500.0,0.00018673,2]
[338403926,1726590641346,-500.0,0.00018673,2]
[338403927,1726590641359,-500.16155096,0.00018673,2]
[338403928,1726590641369,-502.92380316,0.00018673,2]
[338403929,1726590641379,-153.0,0.00018778,2]
[338403930,1726590641389,-6379.70479107,0.00018792,2]
[338403931,1726590641399,-156.67624292,0.00018792,2]
[338403932,1726590641410,-150.0,0.00018827,2]
[338403933,1726590641423,-748.08828909,0.00018838,2]
[338403934,1726590641434,-160.0,0.00018872,5]
[338403935,1726590641443,-153.0,0.000189,2]
[338403936,1726590641453,-153.0,0.000189,2]
[338403937,1726590641463,-153.0,0.000189,2]
[338403938,1726590641473,-153.0,0.000189,2]
[338403939,1726590641483,-500.0,0.0001902,2]
[338403940,1726590641494,-500.0,0.0001902,2]
[338403941,1726590641503,-500.0,0.00019078,2]
[338403942,1726590641515,-500.0,0.00019078,2]
[338403943,1726590641526,-634.58382803,0.00019124,2]
[338403944,1726590641536,-163.95819922,0.00019137,2]
[338403945,1726590641547,-161.890724,0.00019178,2]
[338403946,1726590641557,-163.617174,0.00019178,2]
[338403947,1726590641566,-161.890724,0.00019178,2]
[338403948,1726590641576,-1093.721934,0.00019178,2]
[338403949,1726590641586,-163.6171761,0.00019178,2]
[338403950,1726590641597,-798.55,0.000192,2]
[338403951,1726590641607,-300.0,0.000192,8]
[338403952,1726590641618,-160.0,0.00019209,6]
[338403953,1726590641629,-748.08828909,0.00019286,2]
[338403954,1726590641639,-332.62557684,0.00019303,2]
[338403955,1726590641652,-150.0,0.00019325,2]
[338403956,1726590641665,-239.488,0.00019342,2]
[338403957,1726590641675,-150.556,0.00019342,2]
[338403958,1726590641684,-524.0,0.00019342,2]
[338403959,1726590641694,-1076.0,0.00019342,2]
[338403961,1726590641704,-160.0,0.00019546,7]
[338403963,1726590641715,-174.890973,0.00019553,2]
[338403965,1726590641727,-186.164427,0.00019553,2]
[338403967,1726590641738,-178.697183,0.00019553,2]
[338403969,1726590641748,-153.0,0.00019661,2]
[338403970,1726590641758,-153.0,0.00019661,2]
[338403971,1726590641767,-153.0,0.00019661,2]
[338403973,1726590641778,-153.0,0.00019661,2]
[338403974,1726590641787,-153.0,0.00019661,2]
[338403976,1726590641796,-587.0,0.00019664,2]
[338403978,1726590641806,-597.74,0.000197,2]
[338403980,1726590641815,-417.159616,0.00019709,2]
[338403982,1726590641825,-300.0,0.0001972,2]
[338403983,1726590641835,-167.83705128,0.0001972,2]
[338404014,1726590643448,-3032.16294872,0.0001972,2]
[338404015,1726590643457,-150.0,0.0001972,2]
[338404016,1726590643466,-208.6901718,0.00019729,2]
[338404017,1726590643476,-208.6901718,0.00019729,2]
[338404018,1726590643485,-208.6901718,0.00019729,2]
[338404019,1726590643494,-208.6901718,0.00019729,2]
[338404020,1726590643503,-208.6901718,0.00019729,2]
[338404021,1726590643512,-208.6901718,0.00019729,2]
[338404022,1726590643522,-208.6901718,0.00019729,2]
[338404023,1726590643533,-208.6901718,0.00019729,2]
[338404024,1726590643544,-748.08828909,0.00019733,2]
[338404025,1726590643554,-174.890973,0.00019797,2]
[338404026,1726590643563,-4470.1,0.000198,2]
[338404027,1726590643574,-1000.0,0.00019842,2]
[338404028,1726590643584,-1000.0,0.00019842,2]
[338404029,1726590643593,-1000.0,0.00019842,2]
[338404030,1726590643603,-1000.0,0.00019842,2]
[338404031,1726590643614,-1093.721934,0.00019863,2]
[338404033,1726590643624,-500.0,0.0001987,2]
[338404035,1726590643633,-160.0,0.00019882,8]
[338404037,1726590643643,-587.0,0.00019924,2]
[338404039,1726590643654,-620.03655094,0.00019944,2]
[338404041,1726590643667,-303.69170752,0.0001999,3]
[338404042,1726590643677,-410.54490423,0.0002,2]
[338404121,1726591222941,1800.0,0.0001401,2]
[338404168,1726591763308,-263.01021232,0.00017048,2]
[338404217,1726591832671,-1455.719861,0.00017048,2]
[338404285,1726591840889,-1281.26992668,0.00017048,2]
[338404286,1726591840900,-250.0,0.00017048,2]
[338404287,1726591840910,-300.0,0.00017097,2]
[338404289,1726591840920,-300.0,0.00017097,2]
[338404291,1726591840929,-24900.0,0.00017098,2]
[338404293,1726591840941,-276.5721941,0.000172,2]
[338404295,1726591840951,-276.5721941,0.000172,2]
[338404296,1726591840960,-276.5721941,0.000172,2]
[338404297,1726591840970,-3265.06376385,0.00017212,2]
[338404298,1726591840979,-634.62037441,0.00017228,2]
[338404299,1726591840988,-219.552214,0.00017312,2]
[338404300,1726591840999,-500.0,0.00017997,2]
[338404301,1726591841008,-500.0,0.00017997,2]
[338404302,1726591841018,-634.80958721,0.00017997,2]
[338404303,1726591841027,-500.0,0.00017997,2]
[338404304,1726591841036,-500.0,0.00017997,2]
[338404305,1726591841045,-500.0,0.00017997,2]
[338404306,1726591841055,-500.0,0.00017997,2]
[338404307,1726591841064,-500.0,0.00017997,2]
[338404308,1726591841073,-500.0,0.00017997,2]
[338404309,1726591841082,-500.0,0.00017997,2]
[338404310,1726591841092,-10000.0,0.00018,6]
[338404311,1726591841101,-620.73101872,0.0001809,2]
[338404312,1726591841111,-420.0,0.00018672,2]
[338404313,1726591841120,-420.0,0.00018807,2]
[338404314,1726591841129,-208.6901718,0.00018907,2]
[338404315,1726591841138,-208.6901718,0.00018907,2]
[338404316,1726591841147,-208.6901718,0.00018907,2]
[338404317,1726591841156,-208.6901718,0.0001893,2]
[338404318,1726591841165,-620.03655094,0.00018994,2]
[338404319,1726591841174,-10000.0,0.00019,7]
[338404320,1726591841187,-500.0,0.0001902,2]
[338404321,1726591841196,-6379.70479107,0.00019092,2]
[338404322,1726591841205,-211.234843,0.00019178,2]
[338404323,1726591841214,-1093.721934,0.00019178,2]
[338404324,1726591841223,-300.0,0.000192,8]
[338404325,1726591841232,-798.55,0.000192,2]
[338404326,1726591841241,-6379.70479107,0.00019277,2]
[338404327,1726591841250,-6379.70479107,0.00019479,2]
[338404328,1726591841259,-150.556,0.00019543,2]
[338404329,1726591841269,-524.0,0.00019543,2]
[338404330,1726591841279,-1076.0,0.00019543,2]
[338404331,1726591841293,-150.0,0.00019543,2]
[338404332,1726591841303,-239.488,0.00019543,2]
[338404333,1726591841313,-150.0,0.00019543,2]
[338404334,1726591841323,-160.0,0.00019546,3]
[338404335,1726591841332,-299.23531566,0.0001955,2]
[338404336,1726591841342,-174.890976,0.00019553,2]
[338404337,1726591841352,-186.164427,0.00019553,2]
[338404338,1726591841361,-178.697183,0.00019553,2]
[338404339,1726591841371,-174.890973,0.00019553,2]
[338404340,1726591841381,-151.0,0.0001956,2]
[338404341,1726591841391,-151.0,0.0001956,2]
[338404342,1726591841401,-151.0,0.0001956,2]
[338404343,1726591841411,-151.0,0.0001956,2]
[338404344,1726591841421,-151.0,0.0001956,2]
[338404345,1726591841431,-382.365571,0.0001956,2]
[338404346,1726591841442,-151.0,0.0001956,2]
[338404347,1726591841452,-382.365571,0.0001956,2]
[338404348,1726591841461,-151.0,0.0001956,2]
[338404349,1726591841471,-152.238359,0.0001956,2]
[338404350,1726591841480,-152.238359,0.0001956,2]
[338404351,1726591841489,-234.675448,0.0001956,2]
[338404352,1726591841499,-234.675448,0.0001956,2]
[338404353,1726591841508,-1000.0,0.0001956,2]
[338404354,1726591841518,-153.0,0.00019596,2]
[338404355,1726591841527,-153.1622282,0.00019596,2]
[338404356,1726591841537,-299.23531563,0.00019613,2]
[338404357,1726591841546,-5490.01538761,0.0001965,3]
[338404358,1726591841563,-68496.91407282,0.0001965,3]
[338404373,1726591843632,-150.0,0.00019543,2]
[338404374,1726591843642,-531.74168652,0.0001965,3]
[338404375,1726591843655,-4171.68241755,0.0001965,3]
[338404376,1726591843665,-1515.85429458,0.0001965,3]
[338404377,1726591843675,-151.860451,0.0001966,2]
[338404378,1726591843685,-151.0,0.0001966,2]
[338404379,1726591843696,-151.0,0.0001966,2]
[338404381,1726591843705,-151.0,0.0001966,2]
[338404382,1726591843716,-382.365571,0.0001966,2]
[338404384,1726591843726,-151.0,0.0001966,2]
[338404386,1726591843735,-382.365571,0.0001966,2]
[338404387,1726591843745,-151.0,0.0001966,2]
[338404389,1726591843756,-152.238359,0.0001966,2]
[338404390,1726591843765,-152.238359,0.0001966,2]
[338404391,1726591843775,-151.0,0.0001966,2]
[338404393,1726591843786,-231.738854,0.0001966,2]
[338404395,1726591843798,-234.675448,0.0001966,2]
[338404397,1726591843809,-234.675448,0.0001966,2]
[338404399,1726591843819,-1155.276401,0.0001966,2]
[338404401,1726591843830,-1155.276401,0.0001966,2]
[338404402,1726591843840,-151.0,0.0001966,2]
[338404403,1726591843849,-151.0,0.0001966,2]
[338404404,1726591843859,-151.0,0.0001966,2]
[338404405,1726591843868,-151.0,0.0001966,2]
[338404406,1726591843878,-165.617775,0.0001966,2]
[338404407,1726591843887,-165.617775,0.0001966,2]
[338404408,1726591843897,-218.110366,0.0001966,2]
[338404409,1726591843906,-218.110366,0.0001966,2]
[338404410,1726591843915,-122.28221256,0.0001966,2]
[338404426,1726591846633,-484.79226044,0.0001966,2]
[338404427,1726591846643,-607.074473,0.0001966,2]
[338404428,1726591846653,-337.541981,0.0001966,2]
[338404429,1726591846663,-337.541981,0.0001966,2]
[338404430,1726591846672,-151.0,0.0001966,2]
[338404431,1726591846682,-151.0,0.0001966,2]
[338404432,1726591846692,-151.0,0.0001966,2]
[338404434,1726591846702,-151.0,0.0001966,2]
[338404436,1726591846712,-151.0,0.0001966,2]
[338404438,1726591846724,-153.844165,0.0001966,2]
[338404440,1726591846734,-151.0,0.0001966,2]
[338404442,1726591846743,-1334.186486,0.0001966,2]
[338404444,1726591846753,-153.844165,0.0001966,2]
[338404446,1726591846763,-1334.186486,0.0001966,2]
[338404448,1726591846773,-151.0,0.0001966,2]
[338404449,1726591846782,-151.0,0.0001966,2]
[338404450,1726591846791,-644.282706,0.0001966,2]
[338404451,1726591846801,-644.282706,0.0001966,2]
[338404452,1726591846812,-238.886653,0.0001966,2]
[338404453,1726591846822,-238.886653,0.0001966,2]
[338404454,1726591846831,-500.0,0.00019666,2]
[338404455,1726591846840,-238.34026675,0.00019666,2]
[338404456,1726591846850,-622.01714605,0.00019666,2]
[338404457,1726591846859,-78690.3535645,0.00019667,3]
[338404458,1726591846868,-1515.85429458,0.00019667,3]
[338404459,1726591846878,-151.0,0.00019667,2]
[338404460,1726591846888,-151.0,0.00019667,2]
[338404461,1726591846897,-151.0,0.00019667,2]
[338404462,1726591846907,-151.755894,0.0001967,2]
[338404463,1726591846917,-151.0,0.0001967,2]
[338404464,1726591846926,-151.0,0.0001967,2]
[338404465,1726591846936,-299.23531563,0.00019675,2]
[338404466,1726591846946,-299.23531563,0.00019738,2]
[338404467,1726591846956,-417.0714084,0.00019752,2]
[338404468,1726591846966,-208.6901718,0.00019752,2]
[338404469,1726591846975,-417.3803436,0.00019752,2]
[338404470,1726591846985,-210.5702943,0.00019752,2]
[338404471,1726591846995,-208.6901718,0.00019752,2]
[338404472,1726591847004,-208.6901718,0.00019752,2]
[338404473,1726591847013,-208.6901718,0.00019752,2]
[338404474,1726591847023,-208.6901718,0.00019752,2]
[338404475,1726591847033,-208.6901718,0.00019752,2]
[338404476,1726591847042,-208.6901718,0.00019752,2]
[338404477,1726591847051,-208.6901718,0.00019752,2]
[338404478,1726591847061,-208.6901718,0.00019752,2]
[338404479,1726591847070,-207.2554424,0.00019752,2]
[338404480,1726591847079,-299.23531563,0.000198,2]
[338404481,1726591847089,-3200.0,0.00019807,2]
[338404482,1726591847100,-300.0,0.00019807,2]
[338404483,1726591847109,-282.069,0.00019807,2]
[338404484,1726591847119,-151.0,0.00019853,2]
[338404485,1726591847128,-151.0,0.00019853,2]
[338404486,1726591847137,-151.0,0.00019853,2]
[338404487,1726591847146,-382.365571,0.00019853,2]
[338404488,1726591847156,-382.365571,0.00019853,2]
[338404489,1726591847165,-151.0,0.00019853,2]
[338404490,1726591847175,-152.238359,0.00019853,2]
[338404491,1726591847184,-152.238359,0.00019853,2]
[338404492,1726591847195,-151.0,0.00019853,2]
[338404493,1726591847205,-234.675448,0.00019853,2]
[338404494,1726591847215,-234.675448,0.00019853,2]
[338404495,1726591847224,-1155.276401,0.00019853,2]
[338404496,1726591847234,-1155.276401,0.00019853,2]
[338404497,1726591847243,-151.0,0.00019853,2]
[338404498,1726591847252,-151.0,0.00019853,2]
[338404499,1726591847262,-151.0,0.00019853,2]
[338404500,1726591847271,-218.110366,0.00019853,2]
[338404501,1726591847281,-218.110366,0.00019853,2]
[338404502,1726591847291,-607.074473,0.00019853,2]
[338404503,1726591847300,-607.074473,0.00019853,2]
[338404504,1726591847310,-644.282706,0.00019853,2]
[338404505,1726591847319,-644.282706,0.00019853,2]
[338404506,1726591847328,-1093.721934,0.00019863,2]
[338404507,1726591847338,-500.0,0.00019873,2]
[338404508,1726591847348,-151.0,0.0001988,2]
[338404509,1726591847358,-210.651655,0.0001988,2]
[338404510,1726591847540,-236071.060693,0.0001988,3]
[338404511,1726591847550,-4547.56288374,0.0001988,3]
[338404512,1726591847559,-6046.53510506,0.00019887,2]
[338404513,1726591847571,-333.16968601,0.00019887,2]
[338404514,1726591847581,-11165.66598425,0.0001989,5]
[338404515,1726591847590,-349.667,0.0001989,2]
[338404516,1726591847599,-151.0,0.0001989,2]
[338404517,1726591847608,-165.617775,0.0001989,2]
[338404518,1726591847617,-165.617775,0.0001989,2]
[338404519,1726591847626,-165.617775,0.0001989,2]
[338404520,1726591847635,-337.541981,0.0001989,2]
[338404521,1726591847644,-337.541981,0.0001989,2]
[338404522,1726591847653,-337.541981,0.0001989,2]
[338404523,1726591847663,-337.541981,0.0001989,2]
[338404524,1726591847672,-151.0,0.0001989,2]
[338404525,1726591847681,-151.0,0.0001989,2]
[338404526,1726591847691,-151.0,0.0001989,2]
[338404527,1726591847700,-151.0,0.0001989,2]
[338404528,1726591847712,-151.0,0.0001989,2]
[338404529,1726591847724,-228.358006,0.0001989,2]
[338404530,1726591847734,-151.0,0.0001989,2]
[338404531,1726591847743,-151.0,0.0001989,2]
[338404532,1726591847752,-151.0,0.0001989,2]
[338404533,1726591847762,-153.844165,0.0001989,2]
[338404534,1726591847771,-153.844165,0.0001989,2]
[338404535,1726591847781,-151.0,0.0001989,2]
[338404536,1726591847790,-4547.56288374,0.0001989,3]
[338404537,1726591847800,-1334.186486,0.0001989,2]
[338404538,1726591847809,-1334.186486,0.0001989,2]
[338404539,1726591847818,-1334.186486,0.0001989,2]
[338404540,1726591847827,-153.844165,0.0001989,2]
[338404541,1726591847836,-153.844165,0.0001989,2]
[338404542,1726591847846,-1334.186486,0.0001989,2]
[338404543,1726591847855,-1334.186486,0.0001989,2]
[338404544,1726591847864,-1334.186486,0.0001989,2]
[338404545,1726591847873,-210.163314,0.0001989,2]
[338404546,1726591847883,-151.0,0.0001989,2]
[338404547,1726591847893,-238.886653,0.0001989,2]
[338404548,1726591847903,-238.886653,0.0001989,2]
[338404549,1726591847911,-238.886653,0.0001989,2]
[338404550,1726591847921,-238.886653,0.0001989,2]
[338404551,1726591847930,-2325.82,0.000199,2]
[338404552,1726591847941,-33790.96,0.000199,2]
[338404553,1726591847955,-79056.72,0.000199,2]
[338404554,1726591847966,-382.365571,0.000199,2]
[338404555,1726591847975,-382.365571,0.000199,2]
[338404556,1726591847985,-151.0,0.000199,2]
[338404557,1726591847995,-152.238359,0.000199,2]
[338404558,1726591848006,-152.238359,0.000199,2]
[338404559,1726591848015,-151.0,0.000199,2]
[338404560,1726591848024,-234.675448,0.000199,2]
[338404561,1726591848034,-234.675448,0.000199,2]
[338404562,1726591848044,-1155.276401,0.000199,2]
[338404563,1726591848053,-1155.276401,0.000199,2]
[338404564,1726591848063,-151.0,0.000199,2]
[338404565,1726591848073,-151.0,0.000199,2]
[338404566,1726591848082,-151.0,0.000199,2]
[338404567,1726591848092,-165.617775,0.000199,2]
[338404568,1726591848103,-165.617775,0.000199,2]
[338404569,1726591848112,-165.617775,0.000199,2]
[338404570,1726591848122,-165.617775,0.000199,2]
[338404571,1726591848133,-218.110366,0.000199,2]
[338404572,1726591848144,-218.110366,0.000199,2]
[338404573,1726591848154,-607.074473,0.000199,2]
[338404574,1726591848164,-607.074473,0.000199,2]
[338404575,1726591848174,-337.541981,0.000199,2]
[338404576,1726591848183,-337.541981,0.000199,2]
[338404577,1726591848197,-151.0,0.000199,2]
[338404578,1726591848207,-151.0,0.000199,2]
[338404579,1726591848216,-184.132448,0.000199,2]
[338404580,1726591848226,-153.844165,0.000199,2]
[338404581,1726591848236,-1334.186486,0.000199,2]
[338404582,1726591848246,-153.844165,0.000199,2]
[338404583,1726591848256,-1334.186486,0.000199,2]
[338404584,1726591848265,-644.282706,0.000199,2]
[338404585,1726591848274,-644.282706,0.000199,2]
[338404586,1726591848284,-238.886653,0.000199,2]
[338404587,1726591848293,-238.886653,0.000199,2]
[338404588,1726591848303,-151.0,0.000199,2]
[338404589,1726591848313,-151.0,0.000199,2]
[338404590,1726591848323,-620.00182755,0.00019944,2]
[338404591,1726591848333,-500.0,0.0001997,2]
[338404592,1726591848342,-262.86095665,0.00019999,2]
[338404593,1726591848352,-1625.38349023,0.00019999,2]
[338404594,1726591848361,-206.96732235,0.0002,2]
[338404595,1726591848371,-154.11553568,0.00020031,2]
[338404596,1726591848381,-174.890973,0.00020042,2]
[338404597,1726591848390,-6073.64693811,0.00020097,2]
[338404598,1726591848400,-500.0,0.0002014,2]
[338404599,1726591848409,-3265.06376383,0.00020147,2]
[338404600,1726591848419,-151.0,0.0002019,2]
[338404601,1726591848428,-151.0,0.0002019,2]
[338404602,1726591848440,-162.791034,0.0002019,2]
[338404603,1726591848449,-162.791034,0.0002019,2]
[338404604,1726591848458,-151.0,0.0002019,2]
[338404605,1726591848468,-151.0,0.0002019,2]
[338404606,1726591848477,-162.791034,0.0002019,2]
[338404607,1726591848487,-162.791034,0.0002019,2]
[338404608,1726591848496,-1277.4387228,0.0002019,3]
[338404609,1726591848891,-238.41557178,0.0002019,3]
[338404610,1726591848900,-150.112233,0.000202,4]
[338404611,1726591848909,-416.33718519,0.000202,7]
[338404737,1726593037866,-171.741517,0.0001706,2]
[338404738,1726593037878,-3000.0,0.00017902,2]
[338404739,1726593037888,-300.0,0.00018108,2]
[338404740,1726593037897,-300.0,0.00018108,2]
[338404741,1726593037906,-2312.93769345,0.00018109,2]
[338404751,1726593040048,-22587.06230655,0.00018109,2]
[338404752,1726593040057,-219.5522144,0.00018275,2]